fUSD/lending_fUSD_20240817
["ID","MTS","AMOUNT","RATE_DAILY","PERIOD"]
[335162015,1723905040283,-26012.45837098,0.0001078,2]
[335162016,1723905040295,-4599.48305126,0.0001078,2]
[335162017,1723905040312,-876.64328165,0.0001078,2]
[335162022,1723905042861,-1302.1840501,0.0001078,2]
[335162023,1723905042872,-29741.84051448,0.0001078,2]
[335162024,1723905042884,-122209.74019492,0.0001078,2]
[335162025,1723905042895,-646656.74581744,0.0001078,2]
[335162027,1723905042939,-5461.22,0.0001078,2]
[335162028,1723905042950,-618.97020291,0.0001078,2]
[335162029,1723905042961,-359.73856219,0.0001078,2]
[335162030,1723905042972,-328.04999985,0.0001078,2]
[335162031,1723905042983,-7300.0,0.0001078,2]
[335162032,1723905043018,-441032.92810944,0.0001078,2]
[335162033,1723905043029,-5420.415,0.0001078,2]
[335162039,1723905044696,-596.00644246,0.0001078,2]
[335162040,1723905044707,-13779.17179148,0.0001078,2]
[335162041,1723905044717,-1720.3100005,0.0001078,2]
[335162042,1723905044734,-6662.113764,0.0001078,2]
[335162043,1723905044744,-220189.08862199,0.0001078,2]
[335162044,1723905044788,586.1,9.978e-05,2]
[335162045,1723905045806,-5925.18713681,0.0001078,2]
[335162046,1723905045820,-5488.841,0.0001078,2]
[335162047,1723905045832,-792.73224283,0.0001078,2]
[335162048,1723905045905,-2985.11727615,0.0001078,2]
[335162049,1723905046062,-2373.54373705,0.0001078,2]
[335162050,1723905046075,-656.37,0.0001078,2]
[335162051,1723905046087,-1470.51803953,0.0001078,2]
[335162052,1723905046099,-6770.28999999,0.0001078,2]
[335162053,1723905046110,-2289.91559988,0.0001078,2]
[335162054,1723905046121,-65104.97549308,0.0001078,2]
[335162061,1723905354235,242.72,9.921e-05,2]
[335162064,1723905461749,150.0,9.982e-05,2]
[335162065,1723905522312,5746.34,9.943e-05,2]
[335162066,1723905575235,151.69,8.219e-05,2]
[335162067,1723905619479,531.12,9.936e-05,2]
[335162069,1723905816528,205.82,9.936e-05,2]
[335162088,1723906087276,575.1,9.914e-05,2]
[335162090,1723906122829,-794.0,9.985e-05,2]
[335162092,1723906122855,-794.0,9.985e-05,2]
[335162094,1723906122884,-562.3444628,9.985e-05,2]
[335162095,1723906147903,-3987.88410205,9.985e-05,2]
[335162096,1723906147945,-3081.38976065,9.985e-05,2]
[335162098,1723906172786,-4129.2695793,9.985e-05,2]
[335162099,1723906172838,-3066.34148275,9.985e-05,2]
[335162100,1723906197975,-2961.14075425,9.985e-05,2]
[335162101,1723906198101,-4273.18180054,9.985e-05,2]
[335162102,1723906207504,151.69,8.219e-05,2]
[335162111,1723906231910,-300.0,9.984e-05,2]
[335162113,1723906231920,-123654.11488646,9.985e-05,2]
[335162115,1723906231930,-231.6555372,9.985e-05,2]
[335162117,1723906231941,-550.0,0.0001,2]
[335162118,1723906231951,-794.0,0.00010493,2]
[335162119,1723906231960,-3114.92127985,0.00010566,2]
[335162120,1723906231969,-2972.2197,0.00010613,2]
[335162121,1723906231978,-689.843,0.0001068,2]
[335162122,1723906231989,-10577.35206369,0.00010713,2]
[335162123,1723906231997,-150.0,0.00010778,2]
[335162124,1723906232007,-1341.76383425,0.00010779,2]
[335162125,1723906232016,-500.0,0.00010779,2]
[335162126,1723906232025,-500.0,0.00010779,2]
[335162127,1723906232034,-500.0,0.00010779,2]
[335162128,1723906232044,-500.0,0.00010779,2]
[335162129,1723906232053,-500.0,0.00010779,2]
[335162130,1723906232062,-500.0,0.00010779,2]
[335162131,1723906232071,-500.0,0.00010779,2]
[335162132,1723906232080,-29.29328255,0.00010779,2]
[335162133,1723906232094,-360.2762575,0.00010779,2]
[335162134,1723906232103,-500.0,0.00010779,2]
[335162135,1723906232112,-500.0,0.00010779,2]
[335162136,1723906232121,-500.0,0.00010779,2]
[335162137,1723906232131,-500.0,0.00010779,2]
[335162138,1723906232140,-238.43105263,0.00010779,2]
[335162139,1723906232151,-261.56894737,0.00010779,2]
[335162140,1723906232161,-500.0,0.00010779,2]
[335162141,1723906232170,-500.0,0.00010779,2]
[335162142,1723906232180,-500.0,0.00010779,2]
[335162143,1723906232189,-500.0,0.00010779,2]
[335162144,1723906232198,-500.0,0.00010779,2]
[335162145,1723906232208,-602.04674567,0.00010779,2]
[335162146,1723906232217,-748.0,0.0001078,2]
[335162147,1723906232226,-499.99,0.0001078,2]
[335162148,1723906232235,-999739.82396663,0.0001078,2]
[335162149,1723906232258,-1746.55062526,0.0001078,2]
[335162150,1723906232270,-3504.07490294,0.0001078,2]
[335162160,1723906237878,-585.70767439,0.0001078,2]
[335162161,1723906238058,-88.29232561,0.0001078,2]
[335162162,1723906238068,-328.41032524,0.0001078,2]
[335162163,1723906238161,-3846.94404154,0.0001078,2]
[335162164,1723906238189,-468.87,0.0001078,2]
[335162165,1723906238201,-2064.52335986,0.0001078,2]
[335162166,1723906238213,-1005.66191453,0.0001078,2]
[335162175,1723906240034,-1393.49202845,0.0001078,2]
[335162176,1723906240074,-1187.50193938,0.0001078,2]
[335162177,1723906240114,-4225.42326185,0.0001078,2]
[335162178,1723906240126,-4019.09127962,0.0001078,2]
[335162179,1723906240137,-315.6,0.0001078,2]
[335162180,1723906240157,-180991.70109468,0.0001078,2]
[335162181,1723906240358,-1912.14401761,0.0001078,2]
[335162182,1723906240369,-4695.94976508,0.0001078,2]
[335162183,1723906240381,-1016.18572524,0.0001078,2]
[335162184,1723906240392,-424.38,0.0001078,2]
[335162185,1723906240404,-2264.48904993,0.0001078,2]
[335162209,1723906246039,-287.049995,0.00010263,2]
[335162212,1723906289458,9028.9895,9.885e-05,2]
[335162214,1723906322612,205.84,9.906e-05,2]
[335162226,1723906528293,2834.53014604,9.961e-05,2]
[335162227,1723906589057,3304.126946,9.976e-05,2]
[335162228,1723906632723,539.92,9.877e-05,2]
[335162229,1723906724216,1370.39939516,9.926e-05,2]
[335162230,1723906739997,151.69,8.219e-05,2]
[335162232,1723906748990,760.3907085,9.943e-05,2]
[335162233,1723906792224,205.84,9.905e-05,2]
[335162235,1723906894900,403.35359507,9.943e-05,2]
[335162236,1723906995775,155.0,9.943e-05,2]
[335162237,1723907101714,568.06,9.847e-05,2]
[335162257,1723907322553,235.34,9.839e-05,2]
[335162265,1723907386088,151.69,8.219e-05,2]
[335162274,1723907432148,-150.0,9.997e-05,2]
[335162275,1723907432158,-267.11049017,9.997e-05,2]
[335162276,1723907432170,-32.88950983,9.997e-05,2]
[335162277,1723907432179,-2383.11049017,9.998e-05,2]
[335162278,1723907432192,-358.88950983,9.998e-05,2]
[335162279,1723907432202,-4335.06406552,9.998e-05,2]
[335162280,1723907432214,-594.67731106,9.998e-05,2]
[335162281,1723907432227,-251.35461498,9.998e-05,2]
[335162282,1723907432238,-3348.64538502,9.998e-05,2]
[335162283,1723907432249,-2000.0,9.998e-05,2]
[335162284,1723907432260,-1284.35585131,9.998e-05,2]
[335162285,1723907432271,-876.72999162,9.998e-05,2]
[335162286,1723907432282,-2194.55656055,9.998e-05,2]
[335162287,1723907432293,-5236.44719773,9.998e-05,2]
[335162288,1723907432309,-8547.899928,9.998e-05,2]
[335162289,1723907432320,-4090.5615708,9.998e-05,2]
[335162290,1723907432331,-570505.28899541,9.998e-05,2]
[335162291,1723907432341,-39088.38784587,0.0001,2]
[335162292,1723907432351,-50000.0,0.0001,2]
[335162293,1723907432361,-598.617,0.00010163,2]
[335162294,1723907432370,-4732.07578702,0.00010263,2]
[335162296,1723907432380,-3630.94537163,0.00010263,2]
[335162297,1723907432389,-181.85162494,0.00010263,2]
[335162298,1723907432399,-794.0,0.00010492,2]
[335162299,1723907432408,-794.0,0.00010492,2]
[335162300,1723907432419,-10223.08,0.000105,2]
[335162301,1723907432428,-187.04746481,0.0001068,2]
[335162302,1723907432439,-1106.41436412,0.0001068,2]
[335162303,1723907432449,-500.0,0.00010684,2]
[335162305,1723907432458,-500.0,0.00010684,2]
[335162306,1723907432467,-500.0,0.00010684,2]
[335162307,1723907432477,-500.0,0.00010684,2]
[335162309,1723907432486,-500.0,0.00010684,2]
[335162310,1723907432495,-500.0,0.00010684,2]
[335162311,1723907432505,-500.0,0.00010684,2]
[335162312,1723907432514,-500.0,0.00010684,2]
[335162313,1723907432523,-500.0,0.00010684,2]
[335162314,1723907432532,-500.0,0.00010684,2]
[335162315,1723907432542,-318.37,0.00010684,2]
[335162316,1723907432551,-500.0,0.00010684,2]
[335162317,1723907432561,-157.77410409,0.00010684,2]
[335162318,1723907432570,-500.0,0.00010684,2]
[335162319,1723907432579,-500.0,0.00010684,2]
[335162320,1723907432588,-500.0,0.00010684,2]
[335162321,1723907432599,-500.0,0.00010684,2]
[335162322,1723907432608,-500.0,0.00010684,2]
[335162323,1723907432619,-500.0,0.00010684,2]
[335162324,1723907432629,-500.0,0.00010684,2]
[335162325,1723907432638,-500.0,0.00010684,2]
[335162326,1723907432648,-500.0,0.00010684,2]
[335162327,1723907432657,-500.0,0.00010684,2]
[335162328,1723907432667,-500.0,0.00010684,2]
[335162329,1723907432676,-500.0,0.00010684,2]
[335162330,1723907432686,-500.0,0.00010684,2]
[335162331,1723907432699,-500.0,0.00010684,2]
[335162332,1723907432708,-391.89084894,0.00010684,2]
[335162333,1723907432721,-500.0,0.00010684,2]
[335162334,1723907432731,-500.0,0.00010684,2]
[335162335,1723907432740,-500.0,0.00010684,2]
[335162336,1723907432750,-1145.21879,0.0001072,2]
[335162337,1723907432760,-834.8872792,0.00010773,2]
[335162338,1723907432770,-221.9351103,0.00010773,2]
[335162339,1723907432779,-2347.4047439,0.00010773,2]
[335162340,1723907432788,-500.0,0.00010779,2]
[335162341,1723907432797,-500.0,0.00010779,2]
[335162342,1723907432807,-368.45,0.00010779,2]
[335162343,1723907432817,-500.0,0.00010779,2]
[335162344,1723907432827,-500.0,0.00010779,2]
[335162345,1723907432836,-500.0,0.00010779,2]
[335162346,1723907432849,-500.0,0.00010779,2]
[335162347,1723907432859,-500.0,0.00010779,2]
[335162348,1723907432869,-500.0,0.00010779,2]
[335162349,1723907432878,-500.0,0.00010779,2]
[335162350,1723907432888,-500.0,0.00010779,2]
[335162351,1723907432897,-500.0,0.00010779,2]
[335162352,1723907432907,-500.0,0.00010779,2]
[335162353,1723907432916,-500.0,0.00010779,2]
[335162354,1723907432926,-464.49,0.00010779,2]
[335162355,1723907432935,-500.0,0.00010779,2]
[335162356,1723907432948,-500.0,0.00010779,2]
[335162357,1723907432958,-500.0,0.00010779,2]
[335162358,1723907432973,-500.0,0.00010779,2]
[335162359,1723907432986,-500.0,0.00010779,2]
[335162360,1723907432998,-500.0,0.00010779,2]
[335162361,1723907433007,-500.0,0.00010779,2]
[335162362,1723907433016,-500.0,0.00010779,2]
[335162363,1723907433026,-500.0,0.00010779,2]
[335162364,1723907433038,-500.0,0.00010779,2]
[335162365,1723907433048,-500.0,0.00010779,2]
[335162366,1723907433058,-563.72,0.00010779,2]
[335162367,1723907433068,-752.0,0.0001078,2]
[335162368,1723907433079,-1000324.1496912,0.0001078,2]
[335162373,1723907438166,-4985.0801,0.0001078,2]
[335162374,1723907438177,-1270.89616337,0.0001078,2]
[335162375,1723907438216,-2330.15472416,0.0001078,2]
[335162376,1723907438228,-297.48711185,0.0001078,2]
[335162377,1723907438239,-531.06930366,0.0001078,2]
[335162378,1723907438355,-1575.43818511,0.0001078,2]
[335162381,1723907440913,-500.0,0.00010684,2]
[335162382,1723907440924,-546.78119725,0.0001077,2]
[335162383,1723907440936,-257.25880275,0.0001077,2]
[335162384,1723907440946,-309.69619722,0.0001077,2]
[335162390,1723907444145,-500.0,0.00010684,2]
[335162391,1723907444156,-494.34380278,0.0001077,2]
[335162392,1723907444166,-545.65619782,0.0001077,2]
[335162394,1723907444179,-258.38380218,0.0001077,2]
[335162395,1723907444190,-804.04,0.0001077,2]
[335162396,1723907444200,-804.04,0.0001077,2]
[335162397,1723907444210,-804.04,0.0001077,2]
[335162398,1723907444223,-804.04,0.0001077,2]
[335162399,1723907444233,-804.04,0.0001077,2]
[335162400,1723907444243,-804.04,0.0001077,2]
[335162401,1723907444254,-804.04,0.0001077,2]
[335162402,1723907444264,-119.33619782,0.0001077,2]
[335162403,1723907444276,-684.70380218,0.0001077,2]
[335162404,1723907444286,-804.04,0.0001077,2]
[335162405,1723907444296,-804.04,0.0001077,2]
[335162406,1723907444305,-804.04,0.0001077,2]
[335162407,1723907444315,-804.04,0.0001077,2]
[335162408,1723907444325,-804.04,0.0001077,2]
[335162409,1723907444334,-804.04,0.0001077,2]
[335162410,1723907444344,-500.0,0.00010779,2]
[335162411,1723907444353,-500.0,0.00010779,2]
[335162412,1723907444363,-606.66642365,0.00010779,2]
[335162413,1723907444372,-4917.70873417,0.0001078,2]
[335162414,1723907445375,-8479.63585047,0.0001078,2]
[335162433,1723907446401,-804.04,0.0001077,2]
[335162434,1723907446412,-187.72,0.0001077,2]
[335162435,1723907446453,-616.32,0.0001077,2]
[335162436,1723907446462,-804.04,0.0001077,2]
[335162437,1723907446473,-804.04,0.0001077,2]
[335162438,1723907446482,-314.00771042,0.0001077,2]
[335162439,1723907446495,-490.03228958,0.0001077,2]
[335162440,1723907446505,-804.04,0.0001077,2]
[335162441,1723907446514,-203.70801352,0.0001077,2]
[335162442,1723907446613,-600.33198648,0.0001077,2]
[335162443,1723907446623,-48.1202328,0.0001077,2]
[335162444,1723907446635,-260.0,0.0001077,2]
[335162474,1723907449506,509.90429173,8.219e-05,2]
[335162475,1723907450809,694.58569613,8.219e-05,2]
[335162478,1723907478535,13305.54205551,9.962e-05,2]
[335162479,1723907486038,155.0,8.219e-05,2]
[335162485,1723907520933,658.1228,9.897e-05,2]
[335162491,1723907548530,257.04102161,9.962e-05,2]
[335162496,1723907584860,23900.0,9.92e-05,2]
[335162497,1723907585325,301.07270147,9.962e-05,2]
[335162499,1723907595128,545.55,9.92e-05,2]
[335162500,1723907601237,5364.9127,9.898e-05,2]
[335162503,1723907665899,2249.6,9.899e-05,2]
[335162504,1723907678701,427.23,9.976e-05,2]
[335162507,1723907813736,211.72,9.84e-05,2]
[335162508,1723907837416,552.35,9.866e-05,2]
[335162509,1723907865102,2751.48,9.853e-05,2]
[335162511,1723907933898,173.6,9.877e-05,2]
[335162512,1723907978686,151.69,8.219e-05,2]
[335162514,1723908014790,4672.83,9.864e-05,2]
[335162516,1723908072390,1973.89,9.887e-05,2]
[335162517,1723908077215,563.56,9.877e-05,2]
[335162519,1723908139798,153.79,7.911e-05,2]
[335162520,1723908145722,200.0,9.888e-05,2]
[335162521,1723908171079,5339.31,9.888e-05,2]
[335162522,1723908206578,1852.42,9.913e-05,2]
[335162523,1723908212538,155.0,9.943e-05,2]
[335162524,1723908236643,1039.32,9.903e-05,2]
[335162525,1723908313531,263.95,0.0001789,120]
[335162526,1723908326848,250.0,9.908e-05,2]
[335162530,1723908348793,155.0,9.943e-05,2]
[335162531,1723908353409,276.17,9.898e-05,2]
[335162534,1723908368962,150.0,9.863e-05,2]
[335162542,1723908454892,151.69,8.219e-05,2]
[335162544,1723908553493,549.15,9.878e-05,2]
[335162552,1723908632395,-300.0,9.999e-05,2]
[335162554,1723908632404,-150.0,9.999e-05,2]
[335162556,1723908632413,-1315.30034146,0.0001,2]
[335162557,1723908632424,-1105.3299063,0.0001,2]
[335162558,1723908632433,-22.28340984,0.0001,2]
[335162559,1723908632445,-527.71659016,0.0001,2]
[335162560,1723908632454,-653.7077551,0.0001,2]
[335162561,1723908632463,-1471.88191721,0.0001,2]
[335162562,1723908632473,-920.81569175,0.0001,2]
[335162563,1723908632483,-1848.71,0.0001,2]
[335162564,1723908632492,-20824.16112188,0.0001,2]
[335162565,1723908632502,-150.0,0.00010411,2]
[335162566,1723908632512,-283.85337,0.0001067,2]
[335162567,1723908632522,-186.3894,0.0001067,2]
[335162568,1723908632531,-3121.9051,0.0001068,2]
[335162569,1723908632540,-15845.9304,0.0001068,2]
[335162570,1723908632549,-318.62822439,0.0001068,2]
[335162571,1723908632559,-500.0,0.00010684,2]
[335162572,1723908632568,-500.0,0.00010684,2]
[335162573,1723908632578,-3321.6253041,0.00010773,2]
[335162574,1723908632587,-500.0,0.00010779,2]
[335162575,1723908632597,-500.0,0.00010779,2]
[335162576,1723908632607,-500.0,0.00010779,2]
[335162577,1723908632620,-500.0,0.00010779,2]
[335162578,1723908632630,-500.0,0.00010779,2]
[335162579,1723908632639,-278.59379045,0.00010779,2]
[335162580,1723908632649,-1347.15,0.00010779,2]
[335162581,1723908632659,-1347.15,0.00010779,2]
[335162582,1723908632668,-1347.15,0.00010779,2]
[335162583,1723908632678,-500.0,0.00010779,2]
[335162584,1723908632687,-500.0,0.00010779,2]
[335162585,1723908632696,-500.0,0.00010779,2]
[335162586,1723908632706,-725.26,0.00010779,2]
[335162587,1723908632715,-725.26,0.00010779,2]
[335162588,1723908632724,-725.26,0.00010779,2]
[335162589,1723908632733,-500.0,0.00010779,2]
[335162590,1723908632747,-500.0,0.00010779,2]
[335162591,1723908632757,-500.0,0.00010779,2]
[335162592,1723908632771,-500.0,0.00010779,2]
[335162593,1723908632780,-357.63487141,0.00010779,2]
[335162594,1723908632790,-500.0,0.00010779,2]
[335162595,1723908632799,-500.0,0.00010779,2]
[335162596,1723908632809,-500.0,0.00010779,2]
[335162597,1723908632818,-500.88,0.00010779,2]
[335162598,1723908632827,-500.88,0.00010779,2]
[335162599,1723908632836,-500.88,0.00010779,2]
[335162600,1723908632846,-500.0,0.00010779,2]
[335162601,1723908632855,-500.0,0.00010779,2]
[335162602,1723908632869,-500.0,0.00010779,2]
[335162604,1723908632879,-500.0,0.00010779,2]
[335162605,1723908632891,-500.0,0.00010779,2]
[335162606,1723908632900,-500.0,0.00010779,2]
[335162607,1723908632909,-500.0,0.00010779,2]
[335162608,1723908632918,-500.0,0.00010779,2]
[335162609,1723908632927,-500.0,0.00010779,2]
[335162610,1723908632936,-225978.5764637,0.0001078,2]
[335162611,1723908632949,-858.782925,0.0001078,2]
[335162612,1723908632961,-574.91433,0.0001078,2]
[335162613,1723908632972,-6900.37173994,0.0001078,2]
[335162614,1723908632989,-263233.34939293,0.0001078,2]
[335162615,1723908633000,-73272.76094215,0.0001078,2]
[335162616,1723908633015,-355.41834579,0.0001078,2]
[335162617,1723908638344,-607.99,0.0001077,2]
[335162618,1723908638354,-607.99,0.0001077,2]
[335162619,1723908638366,-86.61799743,0.0001077,2]
[335162620,1723908638378,-521.37200257,0.0001077,2]
[335162621,1723908638388,-235.12928982,0.0001078,2]
[335162622,1723908638401,-1393.41253977,0.0001078,2]
[335162623,1723908638412,-434.96787707,0.0001078,2]
[335162624,1723908638423,-1559.04212574,0.0001078,2]
[335162625,1723908638434,-138762.36372872,0.0001078,2]
[335162626,1723908638443,-2000.0,0.0001078,2]
[335162627,1723908638453,-200.0,0.0001078,2]
[335162628,1723908638463,-401.51974171,0.000108,2]
[335162629,1723908638472,-12316.28111925,0.000108,2]
[335162630,1723908638482,-906.0,0.000108,2]
[335162631,1723908638492,-1420.94,0.000108,2]
[335162632,1723908638693,-180.528769,0.00010805,2]
[335162633,1723908638703,-198.931,0.00010808,2]
[335162634,1723908638712,-810.0,0.00010808,2]
[335162635,1723908638721,-446.0,0.00010808,2]
[335162636,1723908638731,-260.125,0.00010808,2]
[335162637,1723908638740,-436.848,0.00010808,2]
[335162638,1723908638749,-4281.49827298,0.0001087,2]
[335162639,1723908638760,-91.11984781,0.0001087,2]
[335162640,1723908638769,-152.88036892,0.0001088,2]
[335162641,1723908638779,-172.26639675,0.0001088,2]
[335162642,1723908638788,-150.316515,0.00010882,2]
[335162643,1723908638797,-200.0,0.00010888,2]
[335162644,1723908638807,-11739.19393231,0.0001089,2]
[335162645,1723908638816,-1800.07371839,0.00010899,2]
[335162646,1723908638826,-1800.07371839,0.00010899,2]
[335162647,1723908638836,-1800.07371839,0.00010899,2]
[335162648,1723908638845,-1168.74036271,0.00010899,2]
[335162649,1723908638856,-631.33335568,0.00010899,2]
[335162650,1723908638867,-236.0582157,0.00010899,2]
[335162651,1723908638878,-1564.01550269,0.00010899,2]
[335162652,1723908638887,-1800.07371839,0.00010899,2]
[335162653,1723908638896,-1800.07371839,0.00010899,2]
[335162654,1723908638906,-1800.07371839,0.00010899,2]
[335162655,1723908638914,-1800.07371839,0.00010899,2]
[335162656,1723908638923,-700.0,0.000109,2]
[335162657,1723908638933,-1665.62082375,0.000109,2]
[335162658,1723908638945,-334.37917625,0.000109,2]
[335162659,1723908638954,-2000.0,0.000109,2]
[335162660,1723908638963,-268.7272605,0.000109,2]
[335162661,1723908638979,-607.99,0.0001077,2]
[335162662,1723908638988,-1531.34645789,0.000109,2]
[335162663,1723908638996,-224.67805637,0.000109,2]
[335162664,1723908639007,-196.45194363,0.000109,2]
[335162665,1723908639016,-528.51989638,0.000109,2]
[335162666,1723908639027,-425.4,0.000109,2]
[335162667,1723908639038,-1258.90883184,0.000109,2]
[335162668,1723908639047,-185.17683609,0.000109,2]
[335162669,1723908639057,-185.17683608,0.000109,2]
[335162670,1723908639066,-185.17683608,0.000109,2]
[335162671,1723908639075,-4317.29982016,0.000109,2]
[335162672,1723908639084,-180.528769,0.00010938,2]
[335162673,1723908639094,-3350.44157487,0.00010956,2]
[335162674,1723908639105,-894.47146415,0.00010956,2]
[335162675,1723908639117,-500.0,0.00010958,2]
[335162676,1723908639128,-500.0,0.00010958,2]
[335162677,1723908639137,-500.0,0.00010958,2]
[335162678,1723908639146,-500.0,0.00010958,2]
[335162679,1723908639156,-500.0,0.00010958,2]
[335162680,1723908639165,-500.0,0.00010958,2]
[335162681,1723908639173,-500.0,0.00010958,2]
[335162682,1723908639183,-500.0,0.00010958,2]
[335162683,1723908639192,-164.83469564,0.00010958,2]
[335162684,1723908639201,-500.0,0.00010958,2]
[335162685,1723908639210,-500.0,0.00010958,2]
[335162686,1723908639219,-500.0,0.00010958,2]
[335162687,1723908639229,-500.0,0.00010958,2]
[335162688,1723908639238,-500.0,0.00010958,2]
[335162689,1723908639247,-500.0,0.00010958,2]
[335162690,1723908639256,-500.0,0.00010958,2]
[335162691,1723908639265,-500.0,0.00010958,2]
[335162692,1723908639275,-500.0,0.00010958,2]
[335162693,1723908639284,-500.0,0.00010958,2]
[335162694,1723908639293,-500.0,0.00010958,2]
[335162695,1723908639302,-500.0,0.00010958,2]
[335162696,1723908639314,-500.0,0.00010958,2]
[335162697,1723908639323,-500.0,0.00010958,2]
[335162698,1723908639332,-500.0,0.00010958,2]
[335162699,1723908639342,-500.0,0.00010958,2]
[335162700,1723908639351,-500.0,0.00010958,2]
[335162701,1723908639361,-500.0,0.00010958,2]
[335162702,1723908639370,-500.0,0.00010958,2]
[335162703,1723908639379,-500.0,0.00010958,2]
[335162704,1723908639388,-500.0,0.00010958,2]
[335162705,1723908639398,-500.0,0.00010958,2]
[335162706,1723908639407,-500.0,0.00010958,2]
[335162707,1723908639416,-500.0,0.00010958,2]
[335162708,1723908639425,-500.0,0.00010958,2]
[335162709,1723908639434,-500.0,0.00010958,2]
[335162710,1723908639443,-500.0,0.00010958,2]
[335162711,1723908639453,-500.0,0.00010958,2]
[335162712,1723908639461,-239.39141519,0.00010958,2]
[335162713,1723908639470,-216.73161605,0.00010958,2]
[335162714,1723908639480,-500.0,0.00010958,2]
[335162715,1723908639489,-568.08762716,0.00010958,2]
[335162716,1723908639498,-500.0,0.00010958,2]
[335162717,1723908639510,-500.0,0.00010958,2]
[335162718,1723908639519,-500.0,0.00010958,2]
[335162719,1723908639528,-327.45274106,0.00010958,2]
[335162720,1723908639546,-172.54725894,0.00010958,2]
[335162721,1723908639556,-249.23862834,0.00010958,2]
[335162722,1723908639567,-141.68057296,0.00010958,2]
[335162723,1723908639576,-500.0,0.00010958,2]
[335162724,1723908639585,-505.61123302,0.00010958,2]
[335162725,1723908639595,-500.0,0.00010958,2]
[335162726,1723908639604,-420.8625003,0.00010958,2]
[335162727,1723908639613,-568.21767538,0.00010958,2]
[335162728,1723908639622,-73.11465793,0.00010958,2]
[335162736,1723908640512,-607.99,0.0001077,2]
[335162737,1723908640522,-607.99,0.0001077,2]
[335162738,1723908640531,-607.99,0.0001077,2]
[335162739,1723908640540,-607.99,0.0001077,2]
[335162740,1723908640551,-607.99,0.0001077,2]
[335162741,1723908640561,-607.99,0.0001077,2]
[335162742,1723908640571,-607.99,0.0001077,2]
[335162743,1723908640580,-607.99,0.0001077,2]
[335162744,1723908640589,-426.88534207,0.00010958,2]
[335162745,1723908640599,-352.71145668,0.00010958,2]
[335162746,1723908640609,-150.0,0.00010959,2]
[335162747,1723908640620,-1500.0,0.00010959,2]
[335162748,1723908640629,-250.0,0.00010959,2]
[335162749,1723908640638,-2000.0,0.00010959,2]
[335162750,1723908640647,-153.99,0.00010959,2]
[335162751,1723908640658,-1347.15,0.00010969,2]
[335162752,1723908640667,-503.36418235,0.00010969,2]
[335162753,1723908640676,-725.26,0.00010969,2]
[335162754,1723908640686,-500.0,0.00010969,2]
[335162755,1723908640695,-500.0,0.00010969,2]
[335162756,1723908640704,-500.88,0.00010969,2]
[335162757,1723908640714,-500.0,0.00010969,2]
[335162758,1723908640723,-500.0,0.00010969,2]
[335162759,1723908640735,-500.0,0.00010969,2]
[335162760,1723908640744,-871.0,0.0001097,2]
[335162761,1723908640753,-49866.43732574,0.0001097,2]
[335162762,1723908640766,-16069.89035227,0.0001097,2]
[335162763,1723908640777,-391.951146,0.0001097,2]
[335162764,1723908640789,-337.94,0.0001097,2]
[335162765,1723908640801,-79453.25159359,0.0001097,2]
[335162766,1723908640813,-998.486475,0.0001097,2]
[335162767,1723908640824,-6007.80077973,0.0001097,2]
[335162768,1723908640836,-4125.98200796,0.0001097,2]
[335162769,1723908640853,-607.99,0.0001077,2]
[335162770,1723908640863,-2317.99626232,0.0001097,2]
[335162771,1723908640874,-3015.37057037,0.0001097,2]
[335162772,1723908640886,-884.83708355,0.0001097,2]
[335162773,1723908640897,-1458.91842534,0.0001097,2]